[Event "*** Titled Tuesday Blitz"]
[Site "Chess.com"]
[Date "2020.04.21"]
[Round "2"]
[White "ALeks_Ivlev"]
[Black "silverback96"]
[Result "0-1"]
[WhiteElo "2519"]
[BlackElo "2189"]
[TimeControl "180+1"]
[EndTime "10:18:23 PDT"]
[Termination "silverback96 won by resignation"]

1. d4 {[%clk 0:03:00.9]} 1... Nf6 {[%clk 0:02:56.2]} 2. c4 {[%clk 0:03:01.1]}
2... c5 {[%clk 0:02:56.8]} 3. d5 {[%clk 0:03:01.3]} 3... e6 {[%clk 0:02:53.8]}
4. Nc3 {[%clk 0:03:01.2]} 4... exd5 {[%clk 0:02:54.7]} 5. cxd5 {[%clk
0:03:01.6]} 5... d6 {[%clk 0:02:55.3]} 6. Nf3 {[%clk 0:03:02]} 6... g6 {[%clk
0:02:55.8]} 7. g3 {[%clk 0:03:01.1]} 7... Bg7 {[%clk 0:02:56.1]} 8. Bg2 {[%clk
0:03:02]} 8... O-O {[%clk 0:02:56.9]} 9. O-O {[%clk 0:03:02.9]} 9... Re8 {[%clk
0:02:57.5]} 10. Bf4 {[%clk 0:03:03.1]} 10... Ne4 {[%clk 0:02:53.9]} 11. Rc1
{[%clk 0:02:53.5]} 11... Bf5 {[%clk 0:02:34]} 12. Qb3 {[%clk 0:02:43.8]} 12...
Nxc3 {[%clk 0:02:31.3]} 13. bxc3 {[%clk 0:02:43.4]} 13... b6 {[%clk 0:02:30.5]}
14. Rfe1 {[%clk 0:02:38.9]} 14... Be4 {[%clk 0:02:29.8]} 15. c4 {[%clk
0:02:34.6]} 15... Qe7 {[%clk 0:02:22.4]} 16. Bf1 {[%clk 0:02:17.6]} 16... Bxf3
{[%clk 0:01:57.2]} 17. Qxf3 {[%clk 0:02:17]} 17... Nd7 {[%clk 0:01:56.4]} 18.
Bg2 {[%clk 0:02:06]} 18... Ne5 {[%clk 0:01:51.1]} 19. Qb3 {[%clk 0:02:05.9]}
19... g5 {[%clk 0:01:50.7]} 20. Bd2 {[%clk 0:02:04.2]} 20... f6 {[%clk
0:01:36.3]} 21. a4 {[%clk 0:01:56.4]} 21... f5 {[%clk 0:01:35.6]} 22. a5 {[%clk
0:01:30]} 22... bxa5 {[%clk 0:01:32.5]} 23. Bxa5 {[%clk 0:01:28.3]} 23... f4
{[%clk 0:01:25.6]} 24. Bd2 {[%clk 0:01:24.5]} 24... Rf8 {[%clk 0:01:18.9]} 25.
gxf4 {[%clk 0:00:48.8]} 25... gxf4 {[%clk 0:01:18.5]} 26. Qh3 {[%clk 0:00:44]}
26... Qg5 {[%clk 0:01:14.3]} 27. Kh1 {[%clk 0:00:33.1]} 27... Ng4 {[%clk
0:01:13.3]} 28. Rf1 {[%clk 0:00:31.5]} 28... Rf6 {[%clk 0:01:07.2]} 29. Bf3
{[%clk 0:00:30.6]} 29... h5 {[%clk 0:00:47.8]} 30. Rb1 {[%clk 0:00:23.3]} 30...
Rh6 {[%clk 0:00:33.8]} 31. Rb7 {[%clk 0:00:20]} 31... Bd4 {[%clk 0:00:30.1]} 32.
Be1 {[%clk 0:00:19.5]} 32... a5 {[%clk 0:00:27.2]} 33. Qg2 {[%clk 0:00:18.5]}
33... a4 {[%clk 0:00:27]} 34. h3 {[%clk 0:00:18.8]} 34... a3 {[%clk 0:00:26.7]}
35. Bd2 {[%clk 0:00:10.5]} 35... a2 {[%clk 0:00:25.1]} 36. Rbb1 {[%clk
0:00:10.1]} 36... a1=Q {[%clk 0:00:21.7]} 37. Rxa1 {[%clk 0:00:09.7]} 37... Rxa1
{[%clk 0:00:22.6]} 38. Rxa1 {[%clk 0:00:09.9]} 38... Bxa1 {[%clk 0:00:23.5]} 39.
hxg4 {[%clk 0:00:08.8]} 39... hxg4+ {[%clk 0:00:24.4]} 40. Kg1 {[%clk
0:00:09.4]} 40... Bd4 {[%clk 0:00:14.7]} 41. Qxg4 {[%clk 0:00:09.5]} 41... Qxg4+
{[%clk 0:00:14.2]} 42. Bxg4 {[%clk 0:00:10]} 42... Rg6 {[%clk 0:00:14.8]} 43.
Kg2 {[%clk 0:00:09]} 43... Rxg4+ {[%clk 0:00:15.2]} 44. Kf3 {[%clk 0:00:09.9]}
44... Rh4 {[%clk 0:00:12.6]} 45. Bxf4 {[%clk 0:00:10.4]} 45... Be5 {[%clk
0:00:12.8]} 46. Bd2 {[%clk 0:00:10.6]} 46... Rxc4 {[%clk 0:00:12.7]} 47. e4
{[%clk 0:00:10.5]} 47... Kf7 {[%clk 0:00:12.8]} 48. Be3 {[%clk 0:00:11]} 48...
Kg6 {[%clk 0:00:13.3]} 49. Bd2 {[%clk 0:00:11.2]} 49... Bd4 {[%clk 0:00:13.7]}
50. Be1 {[%clk 0:00:10.7]} 50... Rc2 {[%clk 0:00:13.8]} 51. Kg3 {[%clk
0:00:10.1]} 51... Re2 {[%clk 0:00:13.4]} 0-1

[Event "*** Titled Tuesday Blitz"]
[Site "Chess.com"]
[Date "2020.04.21"]
[Round "2"]
[White "Agnes66678"]
[Black "Rinas_Oleg"]
[Result "0-1"]
[WhiteElo "2444"]
[BlackElo "2263"]
[TimeControl "180+1"]
[EndTime "10:18:23 PDT"]
[Termination "Rinas_Oleg won by checkmate"]

1. Nf3 {[%clk 0:03:00.9]} 1... d5 {[%clk 0:02:58.3]} 2. g3 {[%clk 0:03:00.6]}
2... c5 {[%clk 0:02:57.4]} 3. Bg2 {[%clk 0:02:58.4]} 3... Nc6 {[%clk 0:02:57]}
4. d4 {[%clk 0:02:58.5]} 4... cxd4 {[%clk 0:02:55.8]} 5. Nxd4 {[%clk 0:02:58.5]}
5... e5 {[%clk 0:02:53.1]} 6. Nxc6 {[%clk 0:02:58.3]} 6... bxc6 {[%clk
0:02:52.4]} 7. c4 {[%clk 0:02:59.2]} 7... Be6 {[%clk 0:02:48.6]} 8. Nc3 {[%clk
0:02:57.4]} 8... Ne7 {[%clk 0:02:39.7]} 9. cxd5 {[%clk 0:02:47]} 9... cxd5
{[%clk 0:02:36.4]} 10. Qa4+ {[%clk 0:02:46.7]} 10... Qd7 {[%clk 0:02:35.8]} 11.
Qxd7+ {[%clk 0:02:45.9]} 11... Kxd7 {[%clk 0:02:34.5]} 12. O-O {[%clk
0:02:46.2]} 12... Rc8 {[%clk 0:02:19.2]} 13. Rd1 {[%clk 0:02:45.5]} 13... d4
{[%clk 0:01:49.6]} 14. e3 {[%clk 0:02:40.9]} 14... Nc6 {[%clk 0:01:43.1]} 15.
Bxc6+ {[%clk 0:02:39.7]} 15... Rxc6 {[%clk 0:01:42]} 16. exd4 {[%clk 0:02:40.1]}
16... exd4 {[%clk 0:01:40.2]} 17. Rxd4+ {[%clk 0:02:39.2]} 17... Kc7 {[%clk
0:01:30.2]} 18. Bf4+ {[%clk 0:02:38.9]} 18... Kb7 {[%clk 0:01:29.6]} 19. Rad1
{[%clk 0:02:35.7]} 19... Bc5 {[%clk 0:01:28.1]} 20. Rd8 {[%clk 0:02:30.5]} 20...
Rxd8 {[%clk 0:01:24.6]} 21. Rxd8 {[%clk 0:02:31.4]} 21... Be7 {[%clk 0:01:17.6]}
22. Rb8+ {[%clk 0:02:26.6]} 22... Ka6 {[%clk 0:01:16.9]} 23. a3 {[%clk
0:01:51.2]} 23... Bf6 {[%clk 0:01:15.4]} 24. Ne4 {[%clk 0:01:50.8]} 24... Bd4
{[%clk 0:01:05.4]} 25. b4 {[%clk 0:01:48]} 25... Rb6 {[%clk 0:00:57.6]} 26. Rd8
{[%clk 0:01:33.3]} 26... Bb2 {[%clk 0:00:53.2]} 27. Nc5+ {[%clk 0:01:32.9]}
27... Kb5 {[%clk 0:00:51.6]} 28. a4+ {[%clk 0:01:24.1]} 28... Kxb4 {[%clk
0:00:47.7]} 29. Nd3+ {[%clk 0:01:24.1]} 29... Ka3 {[%clk 0:00:43.3]} 30. Be3
{[%clk 0:01:22.5]} 30... Rb7 {[%clk 0:00:37.5]} 31. a5 {[%clk 0:01:18.3]} 31...
Bf6 {[%clk 0:00:33.5]} 32. Ra8 {[%clk 0:01:10.9]} 32... Bd5 {[%clk 0:00:30.1]}
33. Bc1+ {[%clk 0:01:07]} 33... Ka2 {[%clk 0:00:27.1]} 34. f3 {[%clk 0:01:00.8]}
34... Bc4 {[%clk 0:00:20.5]} 35. Ne1 {[%clk 0:00:50.6]} 35... Rb1 {[%clk
0:00:19.3]} 36. Bd2 {[%clk 0:00:50.5]} 36... Rd1 {[%clk 0:00:18.4]} 37. Bb4
{[%clk 0:00:49.2]} 37... Kb3 {[%clk 0:00:17.7]} 38. Rb8 {[%clk 0:00:48.1]} 38...
Ka4 {[%clk 0:00:16.8]} 39. Kf2 {[%clk 0:00:45.9]} 39... Bd4+ {[%clk 0:00:16]}
40. Kg2 {[%clk 0:00:45]} 40... a6 {[%clk 0:00:15.4]} 41. Nc2 {[%clk 0:00:40.7]}
41... Be5 {[%clk 0:00:11.9]} 42. Ne3 {[%clk 0:00:40.3]} 42... Bxb8 {[%clk
0:00:10.4]} 43. Nxd1 {[%clk 0:00:39.4]} 43... Kxb4 {[%clk 0:00:09.7]} 44. Kf2
{[%clk 0:00:40]} 44... Kxa5 {[%clk 0:00:09]} 45. Ke3 {[%clk 0:00:40.9]} 45...
Kb4 {[%clk 0:00:08.7]} 46. Kd2 {[%clk 0:00:40.6]} 46... a5 {[%clk 0:00:07.9]}
47. Kc2 {[%clk 0:00:40.8]} 47... a4 {[%clk 0:00:08.4]} 48. Nc3 {[%clk
0:00:40.7]} 48... a3 {[%clk 0:00:07.7]} 49. Nd1 {[%clk 0:00:40.2]} 49... Be5
{[%clk 0:00:07.1]} 50. f4 {[%clk 0:00:39.3]} 50... a2 {[%clk 0:00:05.3]} 51.
fxe5 {[%clk 0:00:39]} 51... a1=Q {[%clk 0:00:04.7]} 52. Ne3 {[%clk 0:00:39.2]}
52... Qc3+ {[%clk 0:00:03.6]} 53. Kd1 {[%clk 0:00:38.8]} 53... Qxe3 {[%clk
0:00:02.8]} 54. e6 {[%clk 0:00:38.6]} 54... Bd3 {[%clk 0:00:02.6]} 55. e7 {[%clk
0:00:37.8]} 55... Qe2+ {[%clk 0:00:03.5]} 56. Kc1 {[%clk 0:00:36.7]} 56... Qc2#
{[%clk 0:00:03]} 0-1

[Event "*** Titled Tuesday Blitz"]
[Site "Chess.com"]
[Date "2020.04.21"]
[Round "2"]
[White "XiaoKangZhong"]
[Black "Halvard"]
[Result "0-1"]
[WhiteElo "2376"]
[BlackElo "2097"]
[TimeControl "180+1"]
[EndTime "10:18:24 PDT"]
[Termination "Halvard won by resignation"]

1. e4 {[%clk 0:03:00.9]} 1... c5 {[%clk 0:02:59.1]} 2. c3 {[%clk 0:02:57.9]}
2... d6 {[%clk 0:02:59.2]} 3. d4 {[%clk 0:02:57.7]} 3... Nf6 {[%clk 0:02:59.4]}
4. Bd3 {[%clk 0:02:56.9]} 4... cxd4 {[%clk 0:02:58.7]} 5. cxd4 {[%clk
0:02:57.8]} 5... g6 {[%clk 0:02:59.1]} 6. Nc3 {[%clk 0:02:56.3]} 6... Bg7 {[%clk
0:02:59.2]} 7. Nf3 {[%clk 0:02:56.2]} 7... O-O {[%clk 0:02:59]} 8. O-O {[%clk
0:02:56.5]} 8... Bg4 {[%clk 0:02:58.2]} 9. Be3 {[%clk 0:02:55.4]} 9... Nc6
{[%clk 0:02:55.8]} 10. h3 {[%clk 0:02:55]} 10... Bxf3 {[%clk 0:02:55.2]} 11.
Qxf3 {[%clk 0:02:55.9]} 11... Nd7 {[%clk 0:02:55]} 12. d5 {[%clk 0:02:45.3]}
12... Nce5 {[%clk 0:02:52.9]} 13. Qe2 {[%clk 0:02:45.8]} 13... Nxd3 {[%clk
0:02:52.1]} 14. Qxd3 {[%clk 0:02:46.7]} 14... Qa5 {[%clk 0:02:46.7]} 15. Rfd1
{[%clk 0:02:41.5]} 15... Rac8 {[%clk 0:02:34.8]} 16. Rac1 {[%clk 0:02:32.8]}
16... a6 {[%clk 0:02:29.8]} 17. a3 {[%clk 0:02:03.9]} 17... Ne5 {[%clk 0:02:26]}
18. Qe2 {[%clk 0:02:03.7]} 18... Nc4 {[%clk 0:02:24.7]} 19. Bd4 {[%clk
0:01:59.2]} 19... Bxd4 {[%clk 0:02:05.8]} 20. Rxd4 {[%clk 0:02:00.1]} 20... Nxa3
{[%clk 0:01:42.8]} 21. Ra4 {[%clk 0:00:57.4]} 21... Rxc3 {[%clk 0:01:40.8]} 22.
Rxa5 {[%clk 0:00:52.8]} 22... Rxc1+ {[%clk 0:01:40.5]} 23. Kh2 {[%clk
0:00:53.1]} 23... Nc4 {[%clk 0:01:40.5]} 24. Ra4 {[%clk 0:00:50.1]} 24... Rc8
{[%clk 0:01:38.9]} 25. b3 {[%clk 0:00:48.1]} 25... Ne5 {[%clk 0:01:32.6]} 26.
Ra2 {[%clk 0:00:45.8]} 26... R8c3 {[%clk 0:01:24.4]} 27. b4 {[%clk 0:00:40.4]}
27... Nd3 {[%clk 0:01:09.6]} 28. b5 {[%clk 0:00:30.8]} 28... axb5 {[%clk
0:01:02.1]} 29. Ra8+ {[%clk 0:00:30.2]} 29... Kg7 {[%clk 0:01:02.5]} 30. Rb8
{[%clk 0:00:29.5]} 30... R1c2 {[%clk 0:00:48.3]} 31. Qg4 {[%clk 0:00:18.2]}
31... Rxf2 {[%clk 0:00:44.5]} 32. Qd7 {[%clk 0:00:14.7]} 32... Rcc2 {[%clk
0:00:40.4]} 33. Qxe7 {[%clk 0:00:14.9]} 33... Rxg2+ {[%clk 0:00:39.3]} 34. Kh1
{[%clk 0:00:15.3]} 34... Rh2+ {[%clk 0:00:36.6]} 35. Kg1 {[%clk 0:00:15.4]}
35... Rcg2+ {[%clk 0:00:36.7]} 36. Kf1 {[%clk 0:00:15.7]} 36... Rf2+ {[%clk
0:00:36.5]} 37. Kg1 {[%clk 0:00:16.1]} 37... Nf4 {[%clk 0:00:23.4]} 38. Qf8+
{[%clk 0:00:14.4]} 38... Kf6 {[%clk 0:00:22.7]} 39. Qd8+ {[%clk 0:00:10.6]}
39... Ke5 {[%clk 0:00:21.6]} 40. Qg5+ {[%clk 0:00:10.8]} 40... Kd4 {[%clk
0:00:19.6]} 41. Qf6+ {[%clk 0:00:10.8]} 41... Kd3 {[%clk 0:00:19]} 42. Qxf4
{[%clk 0:00:09.7]} 42... Rxf4 {[%clk 0:00:17.9]} 43. Kxh2 {[%clk 0:00:10.1]}
43... Kxe4 {[%clk 0:00:16.7]} 44. Rxb7 {[%clk 0:00:09.9]} 44... Kxd5 {[%clk
0:00:16.9]} 45. Rxb5+ {[%clk 0:00:10.3]} 45... Ke6 {[%clk 0:00:15.9]} 46. Rb6
{[%clk 0:00:10.5]} 46... h5 {[%clk 0:00:15.8]} 47. Kg3 {[%clk 0:00:10.3]} 47...
g5 {[%clk 0:00:15.6]} 48. Ra6 {[%clk 0:00:09.5]} 48... h4+ {[%clk 0:00:15]} 49.
Kg2 {[%clk 0:00:09.6]} 49... f6 {[%clk 0:00:15.4]} 50. Ra5 {[%clk 0:00:09.9]}
50... Rb4 {[%clk 0:00:14.7]} 51. Ra6 {[%clk 0:00:09.8]} 51... Ke5 {[%clk
0:00:13.9]} 52. Ra5+ {[%clk 0:00:09.6]} 52... d5 {[%clk 0:00:14.1]} 53. Kf2
{[%clk 0:00:10]} 53... Rb3 {[%clk 0:00:13.8]} 54. Kg2 {[%clk 0:00:10.1]} 54...
Rg3+ {[%clk 0:00:13]} 55. Kh2 {[%clk 0:00:10.1]} 55... f5 {[%clk 0:00:13.1]} 56.
Ra4 {[%clk 0:00:10.3]} 56... d4 {[%clk 0:00:12]} 57. Ra3 {[%clk 0:00:10.3]}
57... Rxa3 {[%clk 0:00:10.2]} 0-1

[Event "*** Titled Tuesday Blitz"]
[Site "Chess.com"]
[Date "2020.04.21"]
[Round "2"]
[White "Juanovic"]
[Black "CroissantNeuf"]
[Result "1-0"]
[WhiteElo "2136"]
[BlackElo "2387"]
[TimeControl "180+1"]
[EndTime "10:18:25 PDT"]
[Termination "Juanovic won by resignation"]

1. e4 {[%clk 0:03:00.9]} 1... e5 {[%clk 0:02:59.6]} 2. Nf3 {[%clk 0:03:01.1]}
2... Nc6 {[%clk 0:03:00.1]} 3. Bb5 {[%clk 0:03:00.8]} 3... a6 {[%clk 0:02:59.8]}
4. Bxc6 {[%clk 0:03:00.3]} 4... dxc6 {[%clk 0:02:59.3]} 5. O-O {[%clk
0:03:01.2]} 5... Qf6 {[%clk 0:02:58.7]} 6. d3 {[%clk 0:02:52.8]} 6... Ne7 {[%clk
0:02:52.9]} 7. Bg5 {[%clk 0:02:48.4]} 7... Qd6 {[%clk 0:02:52.1]} 8. Nbd2 {[%clk
0:02:46.1]} 8... f6 {[%clk 0:02:51.9]} 9. Nc4 {[%clk 0:02:45.8]} 9... Qe6 {[%clk
0:02:34.7]} 10. Be3 {[%clk 0:02:43.6]} 10... Ng6 {[%clk 0:02:32.9]} 11. a4
{[%clk 0:02:40.4]} 11... a5 {[%clk 0:02:22.3]} 12. b3 {[%clk 0:02:32]} 12... Bb4
{[%clk 0:02:19.2]} 13. d4 {[%clk 0:02:22.3]} 13... O-O {[%clk 0:02:10.6]} 14. d5
{[%clk 0:02:21.4]} 14... cxd5 {[%clk 0:02:08.3]} 15. exd5 {[%clk 0:02:21.8]}
15... Qg4 {[%clk 0:01:53]} 16. h3 {[%clk 0:02:19.4]} 16... Qh5 {[%clk
0:01:52.8]} 17. Nh2 {[%clk 0:01:50.2]} 17... Qxd1 {[%clk 0:01:44.7]} 18. Raxd1
{[%clk 0:01:51.1]} 18... Bf5 {[%clk 0:01:44.8]} 19. Rc1 {[%clk 0:01:40.6]} 19...
Rfd8 {[%clk 0:01:33.9]} 20. Rfd1 {[%clk 0:01:40]} 20... Be4 {[%clk 0:01:26.3]}
21. c3 {[%clk 0:01:40.1]} 21... Bf8 {[%clk 0:01:20.8]} 22. d6 {[%clk 0:01:29.2]}
22... Bxd6 {[%clk 0:01:19.5]} 23. Nxd6 {[%clk 0:01:28.2]} 23... Rxd6 {[%clk
0:01:18.3]} 24. Rxd6 {[%clk 0:01:26.6]} 24... cxd6 {[%clk 0:01:18.8]} 25. f3
{[%clk 0:01:25.1]} 25... Bf5 {[%clk 0:01:07]} 26. Rd1 {[%clk 0:01:21.7]} 26...
Ra6 {[%clk 0:01:05.9]} 27. Rd5 {[%clk 0:01:10.6]} 27... Bd7 {[%clk 0:00:43.4]}
28. c4 {[%clk 0:00:50.9]} 28... Ne7 {[%clk 0:00:40.1]} 29. Rd2 {[%clk
0:00:47.4]} 29... Be6 {[%clk 0:00:35.2]} 30. Nf1 {[%clk 0:00:44.2]} 30... d5
{[%clk 0:00:35.2]} 31. Bc5 {[%clk 0:00:42.4]} 31... dxc4 {[%clk 0:00:23.7]} 32.
Bxe7 {[%clk 0:00:42.5]} 32... cxb3 {[%clk 0:00:23.9]} 33. Ba3 {[%clk 0:00:40.7]}
33... Rc6 {[%clk 0:00:20.6]} 34. Ne3 {[%clk 0:00:39.4]} 34... Rc3 {[%clk
0:00:18]} 35. Nd1 {[%clk 0:00:36.2]} 35... Rc2 {[%clk 0:00:17]} 36. Rxc2 {[%clk
0:00:35.3]} 36... bxc2 {[%clk 0:00:16.8]} 37. Ne3 {[%clk 0:00:35.8]} 37... Bb3
{[%clk 0:00:16.3]} 38. Kf2 {[%clk 0:00:36.1]} 38... Bxa4 {[%clk 0:00:16.5]} 39.
Ke1 {[%clk 0:00:36.5]} 39... b5 {[%clk 0:00:16.9]} 40. Kd2 {[%clk 0:00:35.3]}
40... b4 {[%clk 0:00:17.2]} 41. Bc1 {[%clk 0:00:35.4]} 41... b3 {[%clk
0:00:17.2]} 42. Kc3 {[%clk 0:00:35.9]} 42... Kf7 {[%clk 0:00:14.5]} 43. Nc4
{[%clk 0:00:33.5]} 43... Ke6 {[%clk 0:00:13.2]} 44. Nxa5 {[%clk 0:00:33.5]}
44... Bb5 {[%clk 0:00:12.5]} 45. g3 {[%clk 0:00:30.5]} 45... g5 {[%clk
0:00:10.9]} 46. Nxb3 {[%clk 0:00:29.9]} 46... Be2 {[%clk 0:00:08.2]} 47. Nd2
{[%clk 0:00:27.9]} 47... f5 {[%clk 0:00:06.6]} 48. Kxc2 {[%clk 0:00:27.9]} 48...
h5 {[%clk 0:00:05.3]} 49. Kc3 {[%clk 0:00:25.4]} 49... f4 {[%clk 0:00:03.9]} 50.
g4 {[%clk 0:00:24.5]} 50... hxg4 {[%clk 0:00:03.7]} 51. hxg4 {[%clk 0:00:25.4]}
51... Kf6 {[%clk 0:00:03.3]} 52. Ba3 {[%clk 0:00:25.1]} 52... Kg6 {[%clk
0:00:04.2]} 53. Bd6 {[%clk 0:00:24.9]} 53... Kf6 {[%clk 0:00:05.1]} 54. Bc7
{[%clk 0:00:24.1]} 54... Ke6 {[%clk 0:00:05.5]} 55. Bd8 {[%clk 0:00:23.8]} 55...
Bxf3 {[%clk 0:00:04.1]} 56. Nxf3 {[%clk 0:00:23.4]} 56... e4 {[%clk 0:00:05]}
57. Nxg5+ {[%clk 0:00:21.9]} 57... Ke5 {[%clk 0:00:05.9]} 58. Kd2 {[%clk
0:00:21]} 58... f3 {[%clk 0:00:06.8]} 59. Ke3 {[%clk 0:00:21.2]} 1-0

[Event "*** Titled Tuesday Blitz"]
[Site "Chess.com"]
[Date "2020.04.21"]
[Round "2"]
[White "DanilNajdin"]
[Black "DonBroca"]
[Result "0-1"]
[WhiteElo "2381"]
[BlackElo "2114"]
[TimeControl "180+1"]
[EndTime "10:18:25 PDT"]
[Termination "DonBroca won on time"]

1. d4 {[%clk 0:03:00.9]} 1... Nf6 {[%clk 0:02:59.4]} 2. c4 {[%clk 0:03:00.5]}
2... e6 {[%clk 0:03:00]} 3. Nc3 {[%clk 0:02:59.2]} 3... Bb4 {[%clk 0:03:00.4]}
4. e3 {[%clk 0:02:58.8]} 4... O-O {[%clk 0:02:58.8]} 5. Bd3 {[%clk 0:02:57.6]}
5... b6 {[%clk 0:02:56.5]} 6. Nf3 {[%clk 0:02:55]} 6... Bxc3+ {[%clk 0:02:55.7]}
7. bxc3 {[%clk 0:02:54.6]} 7... d6 {[%clk 0:02:56]} 8. e4 {[%clk 0:02:47.8]}
8... Nbd7 {[%clk 0:02:51.2]} 9. e5 {[%clk 0:02:43]} 9... dxe5 {[%clk 0:02:45.5]}
10. dxe5 {[%clk 0:02:43]} 10... Ng4 {[%clk 0:02:43.5]} 11. h3 {[%clk 0:02:30]}
11... Ngxe5 {[%clk 0:02:41.1]} 12. Nxe5 {[%clk 0:02:21.9]} 12... Nxe5 {[%clk
0:02:42]} 13. Bxh7+ {[%clk 0:02:21.2]} 13... Kxh7 {[%clk 0:02:37.1]} 14. Qh5+
{[%clk 0:02:21.2]} 14... Kg8 {[%clk 0:02:28.2]} 15. Qxe5 {[%clk 0:02:21.7]}
15... Bb7 {[%clk 0:02:26.8]} 16. O-O {[%clk 0:02:20]} 16... Qe7 {[%clk
0:02:03.2]} 17. Bf4 {[%clk 0:02:14]} 17... c5 {[%clk 0:01:58.5]} 18. Rad1 {[%clk
0:02:10.7]} 18... Rfd8 {[%clk 0:01:58.3]} 19. Qc7 {[%clk 0:02:03.6]} 19... Qxc7
{[%clk 0:01:48.7]} 20. Bxc7 {[%clk 0:02:03.5]} 20... Rxd1 {[%clk 0:01:44.4]} 21.
Rxd1 {[%clk 0:02:03.3]} 21... Bc6 {[%clk 0:01:44.5]} 22. Rd6 {[%clk 0:01:59.9]}
22... Ba4 {[%clk 0:01:37.9]} 23. f4 {[%clk 0:01:55.2]} 23... Kf8 {[%clk
0:01:37.6]} 24. Kf2 {[%clk 0:01:44.7]} 24... Rc8 {[%clk 0:01:28.5]} 25. Rd8+
{[%clk 0:01:33.7]} 25... Rxd8 {[%clk 0:01:28.3]} 26. Bxd8 {[%clk 0:01:32.4]}
26... Ke8 {[%clk 0:01:28.6]} 27. Bc7 {[%clk 0:01:32.5]} 27... Kd7 {[%clk
0:01:26.7]} 28. Bb8 {[%clk 0:01:32]} 28... Kc8 {[%clk 0:01:23.1]} 29. Be5 {[%clk
0:01:30.2]} 29... f6 {[%clk 0:01:15]} 30. Bd6 {[%clk 0:01:29.1]} 30... Kd7
{[%clk 0:01:14.6]} 31. Bf8 {[%clk 0:01:28.8]} 31... g6 {[%clk 0:01:14.5]} 32. g4
{[%clk 0:01:22.5]} 32... Bc2 {[%clk 0:01:13.6]} 33. h4 {[%clk 0:01:16.6]} 33...
Bd3 {[%clk 0:01:09.9]} 34. Bg7 {[%clk 0:01:16]} 34... Ke7 {[%clk 0:01:08.7]} 35.
g5 {[%clk 0:01:05.8]} 35... fxg5 {[%clk 0:01:07.1]} 36. fxg5 {[%clk 0:01:05.9]}
36... Bxc4 {[%clk 0:01:05.5]} 37. a3 {[%clk 0:01:05.7]} 37... Bd3 {[%clk
0:00:51.4]} 38. Be5 {[%clk 0:01:05.5]} 38... b5 {[%clk 0:00:49.3]} 39. Ke3
{[%clk 0:01:05.1]} 39... Bf5 {[%clk 0:00:42.3]} 40. Kf4 {[%clk 0:01:02.4]} 40...
a5 {[%clk 0:00:35.3]} 41. Bc7 {[%clk 0:01:02.1]} 41... b4 {[%clk 0:00:33.4]} 42.
cxb4 {[%clk 0:00:43.8]} 42... axb4 {[%clk 0:00:34.3]} 43. a4 {[%clk 0:00:26.5]}
43... Kd7 {[%clk 0:00:25.2]} 44. Be5 {[%clk 0:00:26.5]} 44... Kc6 {[%clk
0:00:21.3]} 45. Ke3 {[%clk 0:00:18.4]} 45... Bc2 {[%clk 0:00:21.2]} 46. a5
{[%clk 0:00:16.3]} 46... Kb5 {[%clk 0:00:20.9]} 47. Bc7 {[%clk 0:00:16.4]} 47...
c4 {[%clk 0:00:20.1]} 48. Kd2 {[%clk 0:00:15.5]} 48... Bf5 {[%clk 0:00:20.5]}
49. Kc1 {[%clk 0:00:12.6]} 49... c3 {[%clk 0:00:21.1]} 50. Be5 {[%clk
0:00:09.2]} 50... Bd3 {[%clk 0:00:20.1]} 51. Bf6 {[%clk 0:00:06.3]} 51... Kxa5
{[%clk 0:00:19.8]} 52. Be5 {[%clk 0:00:06.6]} 52... Ka4 {[%clk 0:00:19.9]} 53.
Bf6 {[%clk 0:00:06.5]} 53... Kb3 {[%clk 0:00:20.4]} 54. Be5 {[%clk 0:00:06.2]}
54... Kc4 {[%clk 0:00:20.9]} 55. h5 {[%clk 0:00:05.8]} 55... b3 {[%clk
0:00:21.4]} 56. Bxc3 {[%clk 0:00:02.2]} 56... Kxc3 {[%clk 0:00:21]} 57. h6
{[%clk 0:00:01.7]} 57... b2+ {[%clk 0:00:21.9]} 0-1